[Event "Titled Tuesday Blitz October 18 Late 2022"]
[White "Efremov, Vladislav"]
[Black "Rastbod, Ali"]
[WhiteFideId "44159935"]
[BlackFideId "12567477"]
[WhiteElo "2118"]
[BlackElo "2248"]
[Result "0-1"]
[Round "01"]
[TimeControl "180+1"]
[Date "2022.10.19"]
[WhiteClock "0:01:14"]
[BlackClock "0:01:22"]

1. d4 {[%clk 0:02:59]}  Nf6 {[%clk 0:02:57]} 2. c4 {[%clk 0:03:00]}  e6 {[%clk 0:02:57]} 3. Nf3 {[%clk 0:02:59]}  Bb4+ {[%clk 0:02:57]} 4. Bd2 {[%clk 0:02:59]}  Qe7 {[%clk 0:02:57]} 5. g3 {[%clk 0:02:58]}  O-O {[%clk 0:02:58]} 6. Bg2 {[%clk 0:02:58]}  Bxd2+ {[%clk 0:02:57]} 7. Qxd2 {[%clk 0:02:58]}  d6 {[%clk 0:02:58]} 8. Nc3 {[%clk 0:02:58]}  e5 {[%clk 0:02:59]} 9. O-O {[%clk 0:02:55]}  Re8 {[%clk 0:02:58]} 10. e4 {[%clk 0:02:50]}  Bg4 {[%clk 0:02:49]} 11. dxe5 {[%clk 0:02:48]}  dxe5 {[%clk 0:02:49]} 12. Nd5 {[%clk 0:02:48]}  Qd8 {[%clk 0:02:47]} 13. Qg5 {[%clk 0:02:40]}  Bxf3 {[%clk 0:02:26]} 14. Nxf6+ {[%clk 0:02:39]}  Qxf6 {[%clk 0:02:26]} 15. Qxf6 {[%clk 0:02:39]}  gxf6 {[%clk 0:02:27]} 16. Bxf3 {[%clk 0:02:40]}  Nc6 {[%clk 0:02:28]} 17. Rfd1 {[%clk 0:02:37]}  Nd4 {[%clk 0:02:20]} 18. Bg4 {[%clk 0:02:37]}  Red8 {[%clk 0:02:14]} 19. Kf1 {[%clk 0:02:35]}  Rd6 {[%clk 0:02:13]} 20. Rac1 {[%clk 0:02:33]}  Rad8 {[%clk 0:02:08]} 21. Rd2 {[%clk 0:02:30]}  Kg7 {[%clk 0:02:05]} 22. Rcd1 {[%clk 0:02:30]}  Ra6 {[%clk 0:02:02]} 23. b3 {[%clk 0:02:29]}  c5 {[%clk 0:02:00]} 24. f4 {[%clk 0:02:27]}  Rad6 {[%clk 0:01:58]} 25. Kf2 {[%clk 0:02:27]}  a6 {[%clk 0:01:57]} 26. Be2 {[%clk 0:02:23]}  Re8 {[%clk 0:01:55]} 27. f5 {[%clk 0:02:17]}  Red8 {[%clk 0:01:54]} 28. Ke3 {[%clk 0:02:17]}  b5 {[%clk 0:01:48]} 29. cxb5 {[%clk 0:02:06]}  axb5 {[%clk 0:01:49]} 30. a4 {[%clk 0:02:06]}  c4 {[%clk 0:01:42]} 31. bxc4 {[%clk 0:02:04]}  bxa4 {[%clk 0:01:41]} 32. Ra2 {[%clk 0:02:01]}  Ra8 {[%clk 0:01:37]} 33. c5 {[%clk 0:01:52]}  Rc6 {[%clk 0:01:37]} 34. Rc1 {[%clk 0:01:33]}  Ra5 {[%clk 0:01:35]} 35. Rc4 {[%clk 0:01:30]}  a3 {[%clk 0:01:30]} 36. Rc3 {[%clk 0:01:26]}  Rcxc5 {[%clk 0:01:22]} 37. Raxa3 {[%clk 0:01:14]}  Rxa3 {[%clk 0:01:21]} 38. Rxa3 {[%clk 0:01:14]}  Nc2+ {[%clk 0:01:22]} 0-1


[Site "https://www.chess.com"]

[Event "Titled Tuesday Blitz October 18 Late 2022"]
[White "Fernandez Hernandez, Gerardo"]
[Black "Rostomyan, Mikayel"]
[WhiteFideId "2207400"]
[BlackFideId "13313754"]
[WhiteElo "2191"]
[BlackElo "2018"]
[Result "1/2-1/2"]
[Round "01"]
[TimeControl "180+1"]
[Date "2022.10.19"]
[WhiteClock "0:00:02"]
[BlackClock "0:00:19"]

1. e4 {[%clk 0:03:00]}  c5 {[%clk 0:02:58]} 2. d3 {[%clk 0:03:00]}  Nc6 {[%clk 0:02:57]} 3. g3 {[%clk 0:03:00]}  d6 {[%clk 0:02:55]} 4. Bg2 {[%clk 0:03:00]}  g6 {[%clk 0:02:56]} 5. f4 {[%clk 0:03:00]}  Bg7 {[%clk 0:02:56]} 6. Nf3 {[%clk 0:03:01]}  e6 {[%clk 0:02:56]} 7. O-O {[%clk 0:03:00]}  Nge7 {[%clk 0:02:57]} 8. c3 {[%clk 0:03:00]}  O-O {[%clk 0:02:57]} 9. Be3 {[%clk 0:03:01]}  f5 {[%clk 0:02:57]} 10. Na3 {[%clk 0:02:45]}  b6 {[%clk 0:02:56]} 11. Qe2 {[%clk 0:02:33]}  Rb8 {[%clk 0:02:50]} 12. Rae1 {[%clk 0:02:21]}  e5 {[%clk 0:02:40]} 13. exf5 {[%clk 0:02:06]}  Nxf5 {[%clk 0:02:40]} 14. Bd2 {[%clk 0:01:51]}  Bd7 {[%clk 0:02:35]} 15. Nc4 {[%clk 0:01:47]}  b5 {[%clk 0:02:29]} 16. Ne3 {[%clk 0:01:37]}  Nxe3 {[%clk 0:02:22]} 17. Bxe3 {[%clk 0:01:35]}  b4 {[%clk 0:02:13]} 18. fxe5 {[%clk 0:01:28]}  Nxe5 {[%clk 0:02:12]} 19. Nxe5 {[%clk 0:01:24]}  Bxe5 {[%clk 0:02:13]} 20. Bd5+ {[%clk 0:01:24]}  Kh8 {[%clk 0:02:03]} 21. Bh6 {[%clk 0:01:21]}  Rxf1+ {[%clk 0:01:46]} 22. Rxf1 {[%clk 0:01:22]}  Qe8 {[%clk 0:01:13]} 23. Rf8+ {[%clk 0:01:12]}  Qxf8 {[%clk 0:01:11]} 24. Bxf8 {[%clk 0:01:13]}  Rxf8 {[%clk 0:01:11]} 25. Qd2 {[%clk 0:00:48]}  bxc3 {[%clk 0:01:03]} 26. bxc3 {[%clk 0:00:47]}  Rb8 {[%clk 0:00:59]} 27. d4 {[%clk 0:00:42]}  cxd4 {[%clk 0:00:57]} 28. cxd4 {[%clk 0:00:42]}  Bg7 {[%clk 0:00:58]} 29. Qf4 {[%clk 0:00:30]}  Bf5 {[%clk 0:00:50]} 30. Bb3 {[%clk 0:00:22]}  h6 {[%clk 0:00:43]} 31. Qxd6 {[%clk 0:00:19]}  Rc8 {[%clk 0:00:37]} 32. Kf2 {[%clk 0:00:13]}  Rf8 {[%clk 0:00:26]} 33. Ke3 {[%clk 0:00:12]}  h5 {[%clk 0:00:25]} 34. d5 {[%clk 0:00:08]}  Re8+ {[%clk 0:00:24]} 35. Kd2 {[%clk 0:00:06]}  Bh6+ {[%clk 0:00:24]} 36. Kc3 {[%clk 0:00:06]}  Rc8+ {[%clk 0:00:22]} 37. Kd4 {[%clk 0:00:04]}  Bg7+ {[%clk 0:00:22]} 38. Ke3 {[%clk 0:00:04]}  Re8+ {[%clk 0:00:21]} 39. Kd2 {[%clk 0:00:03]}  Bg4 {[%clk 0:00:20]} 40. Bc4 {[%clk 0:00:02]}  Bf5 {[%clk 0:00:19]} 41. Bb3 {[%clk 0:00:02]} 1/2-1/2


[Site "https://www.chess.com"]

[Event "Titled Tuesday Blitz October 18 Late 2022"]
[White "Ferreira, Vitor Hugo Vieira"]
[Black "Mahdavi, Reza"]
[WhiteFideId "2119765"]
[BlackFideId "12595926"]
[WhiteElo "2168"]
[BlackElo "2240"]
[Result "0-1"]
[Round "01"]
[TimeControl "180+1"]
[Date "2022.10.19"]
[WhiteClock "0:01:09"]
[BlackClock "0:01:39"]

1. e4 {[%clk 0:03:00]}  c5 {[%clk 0:03:00]} 2. Nf3 {[%clk 0:03:00]}  e6 {[%clk 0:03:00]} 3. d4 {[%clk 0:03:01]}  cxd4 {[%clk 0:03:01]} 4. Nxd4 {[%clk 0:03:01]}  Nc6 {[%clk 0:03:02]} 5. Nc3 {[%clk 0:02:58]}  Qc7 {[%clk 0:03:02]} 6. Be3 {[%clk 0:02:58]}  a6 {[%clk 0:03:03]} 7. Qf3 {[%clk 0:02:58]}  Nf6 {[%clk 0:03:03]} 8. Qg3 {[%clk 0:02:58]}  Qxg3 {[%clk 0:03:01]} 9. hxg3 {[%clk 0:02:58]}  Ng4 {[%clk 0:03:02]} 10. Nxc6 {[%clk 0:02:51]}  Nxe3 {[%clk 0:03:01]} 11. Nd4 {[%clk 0:02:48]}  Nxf1 {[%clk 0:02:45]} 12. Rxf1 {[%clk 0:02:44]}  b5 {[%clk 0:02:46]} 13. O-O-O {[%clk 0:02:42]}  Bb7 {[%clk 0:02:44]} 14. f3 {[%clk 0:02:42]}  h5 {[%clk 0:02:41]} 15. Kb1 {[%clk 0:02:34]}  Bc5 {[%clk 0:02:28]} 16. Nb3 {[%clk 0:02:33]}  Bb6 {[%clk 0:02:26]} 17. e5 {[%clk 0:02:05]}  Ke7 {[%clk 0:02:22]} 18. Nd2 {[%clk 0:02:01]}  Bd4 {[%clk 0:01:56]} 19. Rfe1 {[%clk 0:02:01]}  Bf2 {[%clk 0:01:52]} 20. Re2 {[%clk 0:02:01]}  Bxg3 {[%clk 0:01:52]} 21. Nde4 {[%clk 0:01:55]}  Bxe4 {[%clk 0:01:49]} 22. Nxe4 {[%clk 0:01:53]}  Bxe5 {[%clk 0:01:48]} 23. Nc5 {[%clk 0:01:36]}  Bd6 {[%clk 0:01:41]} 24. Nxd7 {[%clk 0:01:34]}  Kxd7 {[%clk 0:01:42]} 25. Red2 {[%clk 0:01:34]}  Ke7 {[%clk 0:01:43]} 26. Rxd6 {[%clk 0:01:35]}  Rhd8 {[%clk 0:01:44]} 27. Rxd8 {[%clk 0:01:34]}  Rxd8 {[%clk 0:01:45]} 28. Rxd8 {[%clk 0:01:23]}  Kxd8 {[%clk 0:01:45]} 29. c4 {[%clk 0:01:24]}  bxc4 {[%clk 0:01:42]} 30. Kc2 {[%clk 0:01:24]}  g5 {[%clk 0:01:43]} 31. Kc3 {[%clk 0:01:25]}  f5 {[%clk 0:01:43]} 32. Kxc4 {[%clk 0:01:25]}  Kc7 {[%clk 0:01:43]} 33. Kd4 {[%clk 0:01:24]}  Kd6 {[%clk 0:01:43]} 34. b4 {[%clk 0:01:24]}  e5+ {[%clk 0:01:43]} 35. Ke3 {[%clk 0:01:22]}  Kd5 {[%clk 0:01:42]} 36. Kd3 {[%clk 0:01:16]}  h4 {[%clk 0:01:41]} 37. a4 {[%clk 0:01:14]}  g4 {[%clk 0:01:41]} 38. fxg4 {[%clk 0:01:12]}  fxg4 {[%clk 0:01:42]} 39. Ke3 {[%clk 0:01:08]}  h3 {[%clk 0:01:37]} 40. gxh3 {[%clk 0:01:08]}  gxh3 {[%clk 0:01:37]} 41. Kf3 {[%clk 0:01:08]}  e4+ {[%clk 0:01:38]} 42. Kg3 {[%clk 0:01:09]}  e3 {[%clk 0:01:39]} 43. Kxh3 {[%clk 0:01:09]}  e2 {[%clk 0:01:39]} 0-1


[Site "https://www.chess.com"]

[Event "Titled Tuesday Blitz October 18 Late 2022"]
[White "Forgacs, Attila Jr."]
[Black "Bazeev, German"]
[WhiteFideId "773654"]
[BlackFideId "24119350"]
[WhiteElo "2168"]
[BlackElo "2493"]
[Result "1-0"]
[Round "01"]
[TimeControl "180+1"]
[Date "2022.10.19"]
[WhiteClock "0:01:27"]
[BlackClock "0:01:07"]

1. e4 {[%clk 0:03:00]}  c5 {[%clk 0:02:51]} 2. Nf3 {[%clk 0:03:00]}  Nf6 {[%clk 0:02:49]} 3. e5 {[%clk 0:02:59]}  Nd5 {[%clk 0:02:48]} 4. Nc3 {[%clk 0:02:56]}  Nxc3 {[%clk 0:02:49]} 5. dxc3 {[%clk 0:02:56]}  e6 {[%clk 0:02:49]} 6. Bg5 {[%clk 0:02:51]}  Qb6 {[%clk 0:02:48]} 7. b3 {[%clk 0:02:44]}  h6 {[%clk 0:02:49]} 8. Bh4 {[%clk 0:02:44]}  Nc6 {[%clk 0:02:49]} 9. Bc4 {[%clk 0:02:40]}  Qc7 {[%clk 0:02:49]} 10. Bg3 {[%clk 0:02:39]}  b6 {[%clk 0:02:50]} 11. O-O {[%clk 0:02:39]}  Bb7 {[%clk 0:02:50]} 12. Qd2 {[%clk 0:02:39]}  g5 {[%clk 0:02:49]} 13. Rfe1 {[%clk 0:02:33]}  O-O-O {[%clk 0:02:46]} 14. a4 {[%clk 0:02:32]}  g4 {[%clk 0:02:37]} 15. Nh4 {[%clk 0:02:29]}  d5 {[%clk 0:02:37]} 16. exd6 {[%clk 0:02:28]}  Bxd6 {[%clk 0:02:37]} 17. Bxd6 {[%clk 0:02:28]}  Qxd6 {[%clk 0:02:33]} 18. Qe2 {[%clk 0:02:22]}  h5 {[%clk 0:02:28]} 19. Ba6 {[%clk 0:02:20]}  Qe7 {[%clk 0:02:14]} 20. Bxb7+ {[%clk 0:02:20]}  Kxb7 {[%clk 0:02:13]} 21. g3 {[%clk 0:02:20]}  Qf6 {[%clk 0:02:07]} 22. a5 {[%clk 0:02:15]}  Ra8 {[%clk 0:01:48]} 23. Qe4 {[%clk 0:01:51]}  Rhd8 {[%clk 0:01:34]} 24. b4 {[%clk 0:01:44]}  cxb4 {[%clk 0:01:31]} 25. cxb4 {[%clk 0:01:44]}  Rd4 {[%clk 0:01:30]} 26. Qe2 {[%clk 0:01:34]}  Rxb4 {[%clk 0:01:29]} 27. axb6 {[%clk 0:01:32]}  Rxb6 {[%clk 0:01:21]} 28. Reb1 {[%clk 0:01:30]}  Qe5 {[%clk 0:01:07]} 29. Qa6+ {[%clk 0:01:27]} 1-0


[Site "https://www.chess.com"]

[Event "Titled Tuesday Blitz October 18 Late 2022"]
[White "Galchenko, Matvey"]
[Black "Chan, Kim Yew"]
[WhiteFideId "24175480"]
[BlackFideId "5717981"]
[WhiteElo "2423"]
[BlackElo "2206"]
[Result "1-0"]
[Round "01"]
[TimeControl "180+1"]
[Date "2022.10.18"]
[WhiteClock "0:02:25"]
[BlackClock "0:00:55"]

1. f4 {[%clk 0:03:00]}  d5 {[%clk 0:02:53]} 2. Nf3 {[%clk 0:03:00]}  Nf6 {[%clk 0:02:51]} 3. g3 {[%clk 0:03:01]}  g6 {[%clk 0:02:50]} 4. Bg2 {[%clk 0:03:02]}  Bg7 {[%clk 0:02:50]} 5. O-O {[%clk 0:03:03]}  O-O {[%clk 0:02:51]} 6. d3 {[%clk 0:03:03]}  c5 {[%clk 0:02:51]} 7. Ne5 {[%clk 0:03:04]}  Nbd7 {[%clk 0:02:30]} 8. Nxd7 {[%clk 0:03:00]}  Bxd7 {[%clk 0:02:31]} 9. e4 {[%clk 0:03:01]}  dxe4 {[%clk 0:02:28]} 10. dxe4 {[%clk 0:03:02]}  e5 {[%clk 0:02:29]} 11. Nc3 {[%clk 0:03:00]}  Bc6 {[%clk 0:02:07]} 12. Be3 {[%clk 0:02:54]}  Qxd1 {[%clk 0:01:55]} 13. Raxd1 {[%clk 0:02:53]}  exf4 {[%clk 0:01:54]} 14. gxf4 {[%clk 0:02:53]}  Rfe8 {[%clk 0:01:54]} 15. e5 {[%clk 0:02:52]}  Bxg2 {[%clk 0:01:42]} 16. Kxg2 {[%clk 0:02:53]}  Ng4 {[%clk 0:01:42]} 17. Bxc5 {[%clk 0:02:51]}  b6 {[%clk 0:01:40]} 18. Bg1 {[%clk 0:02:48]}  Red8 {[%clk 0:01:30]} 19. Nd5 {[%clk 0:02:44]}  Kf8 {[%clk 0:01:19]} 20. c3 {[%clk 0:02:35]}  Rd7 {[%clk 0:01:11]} 21. Ne3 {[%clk 0:02:26]}  Nh6 {[%clk 0:00:55]} 22. Rxd7 {[%clk 0:02:25]} 1-0


[Site "https://www.chess.com"]

[Event "Titled Tuesday Blitz October 18 Late 2022"]
[White "Gasparyan, David"]
[Black "Harvey, Marcus R"]
[WhiteFideId "13311980"]
[BlackFideId "400092"]
[WhiteElo "2361"]
[BlackElo "2457"]
[Result "0-1"]
[Round "01"]
[TimeControl "180+1"]
[Date "2022.10.19"]
[WhiteClock "0:00:02"]
[BlackClock "0:00:47"]

1. d4 {[%clk 0:02:59]}  e6 {[%clk 0:02:59]} 2. Nf3 {[%clk 0:02:50]}  c5 {[%clk 0:02:58]} 3. e3 {[%clk 0:02:49]}  b6 {[%clk 0:02:58]} 4. c3 {[%clk 0:02:46]}  Ba6 {[%clk 0:02:58]} 5. Bxa6 {[%clk 0:02:43]}  Nxa6 {[%clk 0:02:59]} 6. Nbd2 {[%clk 0:02:43]}  Nc7 {[%clk 0:02:59]} 7. O-O {[%clk 0:02:43]}  Nf6 {[%clk 0:02:51]} 8. Qe2 {[%clk 0:02:42]}  d5 {[%clk 0:02:49]} 9. Re1 {[%clk 0:02:35]}  Be7 {[%clk 0:02:49]} 10. Ne5 {[%clk 0:02:28]}  O-O {[%clk 0:02:48]} 11. a4 {[%clk 0:02:08]}  Bd6 {[%clk 0:02:45]} 12. f4 {[%clk 0:02:00]}  Qc8 {[%clk 0:02:40]} 13. Qf3 {[%clk 0:01:41]}  Qb7 {[%clk 0:02:38]} 14. a5 {[%clk 0:01:41]}  b5 {[%clk 0:02:32]} 15. Nf1 {[%clk 0:01:33]}  cxd4 {[%clk 0:02:21]} 16. exd4 {[%clk 0:01:32]}  Ne4 {[%clk 0:02:20]} 17. Ng3 {[%clk 0:01:31]}  f5 {[%clk 0:02:15]} 18. Nxe4 {[%clk 0:01:23]}  dxe4 {[%clk 0:02:14]} 19. Qd1 {[%clk 0:01:19]}  Qd5 {[%clk 0:01:42]} 20. Be3 {[%clk 0:00:59]}  Rfd8 {[%clk 0:01:38]} 21. Qc2 {[%clk 0:00:53]}  Rac8 {[%clk 0:01:35]} 22. a6 {[%clk 0:00:50]}  Bxe5 {[%clk 0:01:34]} 23. dxe5 {[%clk 0:00:49]}  Qc6 {[%clk 0:01:33]} 24. Bxa7 {[%clk 0:00:43]}  Nxa6 {[%clk 0:01:33]} 25. Qb3 {[%clk 0:00:39]}  Kf7 {[%clk 0:01:25]} 26. Bd4 {[%clk 0:00:35]}  Nc5 {[%clk 0:01:24]} 27. Ra7+ {[%clk 0:00:34]}  Rd7 {[%clk 0:01:22]} 28. Rxd7+ {[%clk 0:00:32]}  Qxd7 {[%clk 0:01:22]} 29. Qa3 {[%clk 0:00:23]}  Nd3 {[%clk 0:01:22]} 30. Ra1 {[%clk 0:00:21]}  Nxf4 {[%clk 0:01:22]} 31. Qa7 {[%clk 0:00:19]}  Rc7 {[%clk 0:01:16]} 32. Qb8 {[%clk 0:00:19]}  Ne2+ {[%clk 0:01:15]} 33. Kh1 {[%clk 0:00:20]}  Nxd4 {[%clk 0:01:16]} 34. Ra8 {[%clk 0:00:18]}  Nc6 {[%clk 0:01:07]} 35. Qg8+ {[%clk 0:00:18]}  Kg6 {[%clk 0:01:07]} 36. h3 {[%clk 0:00:18]}  e3 {[%clk 0:01:06]} 37. Rf8 {[%clk 0:00:17]}  Kh6 {[%clk 0:00:57]} 38. h4 {[%clk 0:00:13]}  e2 {[%clk 0:00:52]} 39. Kh2 {[%clk 0:00:04]}  e1=Q {[%clk 0:00:49]} 40. Kh3 {[%clk 0:00:02]}  Qd3+ {[%clk 0:00:47]} 0-1


[Site "https://www.chess.com"]

[Event "Titled Tuesday Blitz October 18 Late 2022"]
[White "Gatineau, Yovann"]
[Black "Fedoseev, Vladimir"]
[WhiteFideId "26028999"]
[BlackFideId "24130737"]
[WhiteElo "2275"]
[BlackElo "2726"]
[Result "0-1"]
[Round "01"]
[TimeControl "180+1"]
[Date "2022.10.18"]
[WhiteClock "0:00:20"]
[BlackClock "0:00:03"]

1. Nf3 {[%clk 0:02:57]}  d5 {[%clk 0:02:17]} 2. g3 {[%clk 0:02:55]}  Nd7 {[%clk 0:02:12]} 3. Bg2 {[%clk 0:02:54]}  e5 {[%clk 0:02:09]} 4. O-O {[%clk 0:02:55]}  Ngf6 {[%clk 0:02:09]} 5. d3 {[%clk 0:02:55]}  Bc5 {[%clk 0:02:07]} 6. c4 {[%clk 0:02:55]}  dxc4 {[%clk 0:02:07]} 7. dxc4 {[%clk 0:02:55]}  e4 {[%clk 0:02:07]} 8. Nd4 {[%clk 0:02:55]}  O-O {[%clk 0:02:06]} 9. Nc3 {[%clk 0:02:54]}  Qe7 {[%clk 0:02:02]} 10. Bg5 {[%clk 0:02:50]}  Qe5 {[%clk 0:01:59]} 11. Bxf6 {[%clk 0:02:42]}  Nxf6 {[%clk 0:01:58]} 12. Nb3 {[%clk 0:02:42]}  Bb4 {[%clk 0:01:36]} 13. Nd5 {[%clk 0:02:34]}  Rd8 {[%clk 0:01:18]} 14. Qc2 {[%clk 0:02:17]}  Nxd5 {[%clk 0:01:15]} 15. cxd5 {[%clk 0:02:18]}  e3 {[%clk 0:01:14]} 16. f4 {[%clk 0:02:15]}  Qe7 {[%clk 0:01:12]} 17. Rac1 {[%clk 0:02:01]}  Bd6 {[%clk 0:01:01]} 18. Nd4 {[%clk 0:02:01]}  a6 {[%clk 0:00:54]} 19. Nf5 {[%clk 0:02:02]}  Bxf5 {[%clk 0:00:51]} 20. Qxf5 {[%clk 0:02:02]}  Re8 {[%clk 0:00:45]} 21. Rc3 {[%clk 0:01:57]}  Rad8 {[%clk 0:00:39]} 22. Rfc1 {[%clk 0:01:53]}  a5 {[%clk 0:00:26]} 23. a4 {[%clk 0:01:50]}  b6 {[%clk 0:00:19]} 24. Rc6 {[%clk 0:01:45]}  Bc5 {[%clk 0:00:19]} 25. h4 {[%clk 0:01:28]}  Rd6 {[%clk 0:00:17]} 26. Rxd6 {[%clk 0:01:20]}  Qxd6 {[%clk 0:00:16]} 27. Rc4 {[%clk 0:01:20]}  g6 {[%clk 0:00:16]} 28. Qd3 {[%clk 0:01:18]}  f5 {[%clk 0:00:16]} 29. Bf3 {[%clk 0:01:18]}  h5 {[%clk 0:00:12]} 30. Kg2 {[%clk 0:01:17]}  Kf7 {[%clk 0:00:12]} 31. Qc3 {[%clk 0:01:17]}  Qe7 {[%clk 0:00:10]} 32. b3 {[%clk 0:01:12]}  Qd6 {[%clk 0:00:10]} 33. Qa1 {[%clk 0:01:12]}  Qf6 {[%clk 0:00:09]} 34. Qxf6+ {[%clk 0:01:11]}  Kxf6 {[%clk 0:00:10]} 35. Kf1 {[%clk 0:01:11]}  Ke7 {[%clk 0:00:11]} 36. Ke1 {[%clk 0:01:11]}  Kd6 {[%clk 0:00:10]} 37. Kd1 {[%clk 0:01:11]}  Rb8 {[%clk 0:00:10]} 38. Kc2 {[%clk 0:01:09]}  b5 {[%clk 0:00:10]} 39. axb5 {[%clk 0:01:09]}  Rxb5 {[%clk 0:00:11]} 40. Ra4 {[%clk 0:01:10]}  Bb4 {[%clk 0:00:10]} 41. Kd3 {[%clk 0:01:05]}  Rc5 {[%clk 0:00:10]} 42. Kxe3 {[%clk 0:01:02]}  Rc3+ {[%clk 0:00:09]} 43. Kf2 {[%clk 0:01:01]}  Rxb3 {[%clk 0:00:08]} 44. Ra2 {[%clk 0:00:56]}  Ba3 {[%clk 0:00:07]} 45. e4 {[%clk 0:00:39]}  a4 {[%clk 0:00:02]} 46. e5+ {[%clk 0:00:39]}  Kc5 {[%clk 0:00:02]} 47. Rc2+ {[%clk 0:00:38]}  Kb6 {[%clk 0:00:03]} 48. d6 {[%clk 0:00:34]}  cxd6 {[%clk 0:00:01]} 49. Rc6+ {[%clk 0:00:34]}  Ka5 {[%clk 0:00:01]} 50. e6 {[%clk 0:00:31]}  Bc5+ {[%clk 0:00:01]} 51. Rxc5+ {[%clk 0:00:29]}  dxc5 {[%clk 0:00:02]} 52. Bc6 {[%clk 0:00:27]}  Rb8 {[%clk 0:00:01]} 53. e7 {[%clk 0:00:27]}  a3 {[%clk 0:00:02]} 54. Bd5 {[%clk 0:00:25]}  Re8 {[%clk 0:00:02]} 55. Bc4 {[%clk 0:00:20]}  Rxe7 {[%clk 0:00:03]} 56. Kf3 {[%clk 0:00:20]}  Kb4 {[%clk 0:00:03]} 0-1


[Site "https://www.chess.com"]

[Event "Titled Tuesday Blitz October 18 Late 2022"]
[White "Georgiadis, Ioannis"]
[Black "Rangel, Daniel"]
[WhiteFideId "4208900"]
[BlackFideId "2124475"]
[WhiteElo "2446"]
[BlackElo "2225"]
[Result "1/2-1/2"]
[Round "01"]
[TimeControl "180+1"]
[Date "2022.10.19"]
[WhiteClock "0:00:05"]
[BlackClock "0:00:05"]

1. e4 {[%clk 0:02:49]}  c5 {[%clk 0:02:59]} 2. Nf3 {[%clk 0:02:48]}  g6 {[%clk 0:02:57]} 3. c3 {[%clk 0:02:48]}  Bg7 {[%clk 0:02:52]} 4. d4 {[%clk 0:02:43]}  cxd4 {[%clk 0:02:53]} 5. cxd4 {[%clk 0:02:43]}  d5 {[%clk 0:02:54]} 6. e5 {[%clk 0:02:40]}  Bg4 {[%clk 0:02:53]} 7. Nbd2 {[%clk 0:02:39]}  e6 {[%clk 0:02:51]} 8. h3 {[%clk 0:02:32]}  Bxf3 {[%clk 0:02:50]} 9. Nxf3 {[%clk 0:02:33]}  Ne7 {[%clk 0:02:50]} 10. Be2 {[%clk 0:02:31]}  O-O {[%clk 0:02:50]} 11. O-O {[%clk 0:02:30]}  Nbc6 {[%clk 0:02:50]} 12. Re1 {[%clk 0:02:25]}  Qb6 {[%clk 0:02:37]} 13. Rb1 {[%clk 0:02:24]}  Nf5 {[%clk 0:02:35]} 14. Be3 {[%clk 0:02:23]}  Nxe3 {[%clk 0:02:34]} 15. fxe3 {[%clk 0:02:24]}  Bh6 {[%clk 0:02:32]} 16. Bf1 {[%clk 0:02:22]}  Rac8 {[%clk 0:02:29]} 17. b4 {[%clk 0:02:15]}  Ne7 {[%clk 0:02:18]} 18. g4 {[%clk 0:02:12]}  Rc3 {[%clk 0:02:05]} 19. Bd3 {[%clk 0:02:11]}  Rfc8 {[%clk 0:01:42]} 20. Kg2 {[%clk 0:01:59]}  Bg7 {[%clk 0:01:20]} 21. Re2 {[%clk 0:01:48]}  Nc6 {[%clk 0:01:14]} 22. Qd2 {[%clk 0:01:30]}  Nxb4 {[%clk 0:01:04]} 23. a3 {[%clk 0:01:30]}  Rxd3 {[%clk 0:01:00]} 24. Qxb4 {[%clk 0:01:18]}  Qxb4 {[%clk 0:00:59]} 25. Rxb4 {[%clk 0:01:19]}  b6 {[%clk 0:00:55]} 26. a4 {[%clk 0:01:13]}  Ra3 {[%clk 0:00:54]} 27. Kf2 {[%clk 0:01:05]}  Bf8 {[%clk 0:00:54]} 28. Rb1 {[%clk 0:01:02]}  Rxa4 {[%clk 0:00:54]} 29. e4 {[%clk 0:01:01]}  dxe4 {[%clk 0:00:53]} 30. Rxe4 {[%clk 0:01:02]}  Rc2+ {[%clk 0:00:53]} 31. Kg3 {[%clk 0:01:02]}  Ra3 {[%clk 0:00:52]} 32. Rf4 {[%clk 0:00:58]}  Rcc3 {[%clk 0:00:51]} 33. g5 {[%clk 0:00:59]}  Be7 {[%clk 0:00:50]} 34. Kg4 {[%clk 0:00:57]}  Rab3 {[%clk 0:00:41]} 35. Rd1 {[%clk 0:00:51]}  a5 {[%clk 0:00:41]} 36. d5 {[%clk 0:00:51]}  exd5 {[%clk 0:00:41]} 37. Rxd5 {[%clk 0:00:51]}  Rb4 {[%clk 0:00:38]} 38. Rd7 {[%clk 0:00:47]}  Bc5 {[%clk 0:00:35]} 39. e6 {[%clk 0:00:28]}  Rxf4+ {[%clk 0:00:33]} 40. Kxf4 {[%clk 0:00:29]}  fxe6 {[%clk 0:00:31]} 41. Ne5 {[%clk 0:00:30]}  Be3+ {[%clk 0:00:18]} 42. Kg4 {[%clk 0:00:30]}  Bd4 {[%clk 0:00:17]} 43. Nf7 {[%clk 0:00:26]}  Bg7 {[%clk 0:00:15]} 44. Nh6+ {[%clk 0:00:24]}  Bxh6 {[%clk 0:00:14]} 45. gxh6 {[%clk 0:00:25]}  Rc4+ {[%clk 0:00:14]} 46. Kg5 {[%clk 0:00:25]}  Rc5+ {[%clk 0:00:14]} 47. Kf6 {[%clk 0:00:23]}  Rf5+ {[%clk 0:00:15]} 48. Kxe6 {[%clk 0:00:24]}  a4 {[%clk 0:00:15]} 49. Rg7+ {[%clk 0:00:23]}  Kh8 {[%clk 0:00:14]} 50. Ra7 {[%clk 0:00:23]}  Ra5 {[%clk 0:00:14]} 51. Rb7 {[%clk 0:00:23]}  Ra8 {[%clk 0:00:13]} 52. Rxb6 {[%clk 0:00:22]}  a3 {[%clk 0:00:14]} 53. Rb1 {[%clk 0:00:22]}  a2 {[%clk 0:00:15]} 54. Ra1 {[%clk 0:00:23]}  Kg8 {[%clk 0:00:15]} 55. Ke7 {[%clk 0:00:20]}  Ra6 {[%clk 0:00:13]} 56. h4 {[%clk 0:00:20]}  Ra4 {[%clk 0:00:12]} 57. Ke8 {[%clk 0:00:20]}  Re4+ {[%clk 0:00:11]} 58. Kd7 {[%clk 0:00:19]}  Kf7 {[%clk 0:00:10]} 59. Rxa2 {[%clk 0:00:19]}  Rxh4 {[%clk 0:00:10]} 60. Rf2+ {[%clk 0:00:19]}  Kg8 {[%clk 0:00:09]} 61. Ke7 {[%clk 0:00:16]}  Re4+ {[%clk 0:00:09]} 62. Kf6 {[%clk 0:00:15]}  Re8 {[%clk 0:00:09]} 63. Ra2 {[%clk 0:00:14]}  Rf8+ {[%clk 0:00:10]} 64. Ke7 {[%clk 0:00:12]}  Rb8 {[%clk 0:00:08]} 65. Ra7 {[%clk 0:00:11]}  Kh8 {[%clk 0:00:08]} 66. Kf6 {[%clk 0:00:11]}  Rf8+ {[%clk 0:00:08]} 67. Ke7 {[%clk 0:00:11]}  Rg8 {[%clk 0:00:08]} 68. Kf6 {[%clk 0:00:11]}  g5 {[%clk 0:00:08]} 69. Rg7 {[%clk 0:00:08]}  g4 {[%clk 0:00:05]} 70. Kf7 {[%clk 0:00:06]}  Ra8 {[%clk 0:00:03]} 71. Rxg4 {[%clk 0:00:06]}  Ra7+ {[%clk 0:00:03]} 72. Kf8 {[%clk 0:00:06]}  Ra8+ {[%clk 0:00:04]} 73. Kf7 {[%clk 0:00:07]}  Ra7+ {[%clk 0:00:04]} 74. Kf8 {[%clk 0:00:07]}  Ra8+ {[%clk 0:00:05]} 75. Ke7 {[%clk 0:00:07]}  Ra7+ {[%clk 0:00:05]} 76. Kf8 {[%clk 0:00:05]} 1/2-1/2


[Site "https://www.chess.com"]